bitfinex/quotes_BTCUSD_20240730
["timestamp","ask_amount","ask_price","bid_price","bid_amount"]
[1722322482422,0.2025028,66850.0,66849.0,0.27476224]
[1722322483024,0.1955028,66850.0,66849.0,0.15409024]
[1722322483425,0.1945028,66850.0,66849.0,0.15409024]
[1722322483666,0.10729481,66850.0,66849.0,0.15409024]
[1722322483872,0.10574061,66850.0,66849.0,0.15409024]
[1722322484071,0.1955028,66850.0,66849.0,0.15409024]
[1722322484471,0.10574061,66850.0,66849.0,0.27376224]
[1722322484877,0.001,66850.0,66849.0,0.51310724]
[1722322485613,0.06829264,66850.0,66849.0,0.51310724]
[1722322486525,0.06829264,66850.0,66849.0,0.75245224]
[1722322486526,0.09176164,66850.0,66849.0,0.75245224]
[1722322486747,0.06932576,66850.0,66849.0,0.75245224]
[1722322486966,0.04585588,66850.0,66849.0,0.75245224]
[1722322487398,0.04585588,66850.0,66849.0,0.75145224]
[1722322487574,0.04585588,66850.0,66849.0,0.75945224]
[1722322487911,0.04585588,66850.0,66849.0,0.76545224]
[1722322488573,0.001,66850.0,66849.0,0.76545224]
[1722322488775,0.001,66850.0,66849.0,0.52610724]
[1722322488976,0.001,66850.0,66849.0,0.28676224]
[1722322489677,0.02446972,66850.0,66849.0,0.28676224]
[1722322489882,0.001,66850.0,66849.0,0.28676224]
[1722322490411,0.0025542,66850.0,66849.0,0.28676224]
[1722322490616,0.001,66850.0,66849.0,0.28676224]
[1722322490838,0.001,66850.0,66849.0,0.16709024]
[1722322491696,0.00253444,66850.0,66849.0,0.16709024]
[1722322491828,0.001,66850.0,66849.0,0.16709024]
[1722322493350,0.02446985,66850.0,66849.0,0.16709024]
[1722322493775,0.02446985,66850.0,66849.0,0.02129024]
[1722322493776,0.98512549,66850.0,66849.0,0.02129024]
[1722322493977,0.74578449,66850.0,66849.0,0.02129024]
[1722322494179,0.98512549,66850.0,66849.0,0.014913]
[1722322494557,0.98412549,66850.0,66849.0,0.000913]
[1722322494759,0.98412549,66850.0,66849.0,0.005913]
[1722322494990,0.98567969,66850.0,66849.0,0.007913]
[1722322495198,0.92461705,66850.0,66849.0,0.007913]
[1722322495368,0.92306285,66850.0,66849.0,0.007913]
[1722322495958,0.92306285,66850.0,66849.0,0.002913]
[1722322496331,0.92606285,66850.0,66849.0,0.000913]
[1722322496552,1.06161382,66850.0,66849.0,0.000913]
[1722322496878,1.1432082,66850.0,66849.0,0.000913]
[1722322497275,1.1442082,66850.0,66849.0,0.000913]
[1722322497481,1.29484124,66850.0,66849.0,0.000913]
[1722322498199,1.30391754,66850.0,66849.0,0.000913]
[1722322498438,1.45382829,66850.0,66849.0,0.000913]
[1722322498685,1.3653366,66850.0,66849.0,0.000913]
[1722322499656,1.36553341,66850.0,66849.0,0.000913]
[1722322500233,1.36553519,66850.0,66849.0,0.000913]
[1722322500475,1.51648135,66850.0,66849.0,0.000913]
[1722322500684,1.3650486,66850.0,66849.0,0.000913]
[1722322500858,1.51648135,66850.0,66849.0,0.000913]
[1722322501244,1.3650486,66850.0,66849.0,0.000913]
[1722322501444,1.51648135,66850.0,66849.0,0.000913]
[1722322501703,1.4930115,66850.0,66849.0,0.000913]
[1722322501864,1.4931005,66850.0,66849.0,0.000913]
[1722322502291,1.49310173,66850.0,66849.0,0.000913]
[1722322502640,1.49310808,66850.0,66849.0,0.000913]
[1722322502785,1.35165249,66850.0,66849.0,0.000913]
[1722322502986,1.49393813,66850.0,66849.0,0.000913]
[1722322504561,1.51741043,66850.0,66849.0,0.000913]
[1722322505174,1.5275517,66850.0,66849.0,0.000913]
[1722322505392,1.5818794,66850.0,66849.0,0.000913]
[1722322505823,1.24886902,66850.0,66849.0,0.000913]
[1722322506050,1.36853902,66850.0,66849.0,0.000913]
[1722322507105,1.35853902,66850.0,66849.0,0.000913]
[1722322508102,1.35852373,66850.0,66849.0,0.000913]
[1722322508336,1.20861298,66850.0,66849.0,0.000913]
[1722322508467,1.13081298,66850.0,66849.0,0.000913]
[1722322508663,1.13080054,66850.0,66849.0,0.000913]
[1722322510087,1.15427279,66850.0,66849.0,0.000913]
[1722322510490,1.13080054,66850.0,66849.0,0.000913]
[1722322511856,1.08434013,66850.0,66849.0,0.000913]
[1722322512058,1.131062,66850.0,66849.0,0.000913]
[1722322512662,1.26562318,66850.0,66849.0,0.000913]
[1722322513071,1.4102345,66850.0,66849.0,0.000913]
[1722322513284,1.51050675,66850.0,66849.0,0.000913]
[1722322513657,1.30575145,66850.0,66849.0,0.000913]
[1722322513879,1.35240196,66850.0,66849.0,0.000913]
[1722322514101,1.48696314,66850.0,66849.0,0.000913]
[1722322514478,1.48695831,66850.0,66849.0,0.000913]
[1722322515319,1.4869259,66850.0,66849.0,0.000913]
[1722322515959,1.35237628,66850.0,66849.0,0.000913]
[1722322516821,1.37584867,66850.0,66849.0,0.000913]
[1722322517186,1.35237628,66850.0,66849.0,0.000913]
[1722322518496,1.30575145,66850.0,66849.0,0.000913]
[1722322518639,1.35239611,66850.0,66849.0,0.000913]
[1722322521838,1.30575145,66850.0,66849.0,0.000913]
[1722322522040,1.38581159,66850.0,66849.0,0.000913]
[1722322522247,1.3623392,66850.0,66849.0,0.000913]
[1722322524015,1.3523392,66850.0,66849.0,0.000913]
[1722322524215,1.35220114,66850.0,66849.0,0.000913]
[1722322525144,1.32922384,66850.0,66849.0,0.000913]
[1722322525311,1.37566661,66850.0,66849.0,0.000913]
[1722322526101,1.35219422,66850.0,66849.0,0.000913]
[1722322528493,1.35220023,66850.0,66849.0,0.000913]
[1722322529349,1.37567258,66850.0,66849.0,0.000913]
[1722322531855,1.37565928,66850.0,66849.0,0.000913]
[1722322535098,1.52702346,66850.0,66849.0,0.000913]
[1722322535310,1.37559278,66850.0,66849.0,0.000913]
[1722322536456,1.52702747,66850.0,66849.0,0.000913]
[1722322537374,1.37559278,66850.0,66849.0,0.000913]
[1722322538584,1.37551791,66850.0,66849.0,0.000913]
[1722322541974,1.37551791,66850.0,66849.0,0.143113]
[1722322542365,1.3755108,66850.0,66849.0,0.143113]
[1722322542513,1.23089948,66850.0,66849.0,0.143113]
[1722322543990,1.18461248,66850.0,66849.0,0.143113]
[1722322544213,1.23091464,66850.0,66849.0,0.143113]
[1722322548419,1.23089071,66850.0,66849.0,0.143113]
[1722322551168,0.99154971,66850.0,66849.0,0.143113]
[1722322551771,0.16576467,66850.0,66849.0,0.143113]
[1722322551940,0.11041014,66850.0,66849.0,0.50213]
[1722322552152,0.00843,66851.0,66850.0,0.359011]
[1722322552153,0.07584483,66851.0,66850.0,0.359011]
[1722322552444,0.00843,66851.0,66850.0,1.33094651]
[1722322553430,0.00843,66851.0,66850.0,1.33594651]
[1722322553628,0.00843,66854.0,66853.0,1.012048]
[1722322553800,0.00843,66854.0,66853.0,1.21315043]
[1722322554195,0.00843,66854.0,66853.0,1.01789831]
[1722322554393,0.00843,66854.0,66853.0,0.85536731]
[1722322555551,0.00843,66854.0,66853.0,0.77856731]
[1722322555750,0.00843,66854.0,66853.0,0.86736731]
[1722322556141,0.00843,66854.0,66853.0,0.85536731]
[1722322556524,0.00843,66854.0,66853.0,0.86736731]
[1722322557482,0.00843,66854.0,66853.0,0.87836731]
[1722322557687,0.00843,66854.0,66853.0,0.86736731]
[1722322557892,0.00843,66854.0,66853.0,0.87836731]
[1722322558293,0.00843,66854.0,66853.0,1.11769831]
[1722322560402,0.03189752,66854.0,66853.0,1.11769831]
[1722322561886,0.00843,66854.0,66853.0,1.11769831]
[1722322564977,0.03189773,66854.0,66853.0,1.11769831]
[1722322565814,0.00843,66854.0,66853.0,1.11769831]
[1722322566861,0.00843,66854.0,66853.0,1.04089831]
[1722322567301,0.00843,66854.0,66853.0,1.11769831]
[1722322569150,0.0318978,66854.0,66853.0,1.11769831]
[1722322569353,0.00843,66854.0,66853.0,1.11769831]
[1722322572685,0.03189791,66854.0,66853.0,1.26833135]
[1722322572887,0.03189791,66854.0,66853.0,1.29133135]
[1722322573090,0.00843,66854.0,66853.0,1.29133135]
[1722322573311,0.00843,66854.0,66853.0,1.53066235]
[1722322574909,0.00843,66854.0,66853.0,1.45386235]
[1722322575118,0.00843,66854.0,66853.0,1.04089831]
[1722322575526,0.00843,66854.0,66853.0,1.11769831]
[1722322576288,0.03189768,66854.0,66853.0,1.11769831]
[1722322577464,0.03189768,66854.0,66853.0,1.04089831]
[1722322577664,0.03189768,66854.0,66853.0,1.11769831]
[1722322578290,0.03189768,66854.0,66853.0,1.26833135]
[1722322578468,0.03189768,66854.0,66853.0,1.63196354]
[1722322578853,0.03189768,66854.0,66853.0,1.65496354]
[1722322579278,0.03189768,66854.0,66853.0,1.53066235]
[1722322579508,0.03189768,66854.0,66853.0,1.65496056]
[1722322579509,0.00843,66854.0,66853.0,1.65496056]
[1722322580151,0.00843,66854.0,66853.0,1.65495978]
[1722322580610,0.00843,66854.0,66853.0,1.53066235]
[1722322580814,0.00843,66854.0,66853.0,1.65495484]
[1722322582868,0.03189726,66854.0,66853.0,1.65495484]
[1722322583275,0.00843,66872.0,66871.0,0.358899]
[1722322583494,0.00843,66872.0,66871.0,0.813265]
[1722322583693,0.00843,66872.0,66871.0,0.81904468]
[1722322584831,0.00843,66872.0,66871.0,0.74224468]
[1722322586600,0.03189301,66872.0,66871.0,0.74724468]
[1722322587379,0.03189301,66872.0,66871.0,0.75124468]
[1722322591649,0.00843,66872.0,66871.0,0.75124468]
[1722322595116,0.03189203,66872.0,66871.0,0.75124468]
[1722322595323,0.00843,66872.0,66871.0,0.75124468]
[1722322596909,0.00843,66872.0,66871.0,0.13441268]
[1722322598444,0.0099842,66872.0,66871.0,0.37367868]
[1722322598663,0.00843,66872.0,66871.0,0.37367868]
[1722322599183,0.05326874,66872.0,66871.0,0.37367868]
[1722322599663,0.00843,66872.0,66871.0,0.37367868]
[1722322599874,0.05326684,66872.0,66871.0,0.37367868]
[1722322600221,0.05326642,66872.0,66871.0,0.37367868]
[1722322601061,0.05326642,66872.0,66871.0,1.07021068]
[1722322601062,0.00843,66872.0,66871.0,1.07021068]
[1722322601237,0.03189232,66872.0,66871.0,1.07021068]
[1722322601659,0.00843,66872.0,66871.0,1.07021068]
[1722322602021,0.00843,66872.0,66871.0,1.19448021]
[1722322602882,0.00843,66872.0,66871.0,1.34011325]
[1722322603119,0.00843,66872.0,66871.0,1.59709972]
[1722322603320,0.00843,66872.0,66871.0,1.71736376]
[1722322603532,0.00843,66872.0,66871.0,1.73036376]
[1722322603942,0.00843,66872.0,66871.0,1.71736376]
[1722322604146,0.00843,66872.0,66871.0,1.73136376]
[1722322604338,0.00843,66872.0,66871.0,1.75436376]
[1722322604738,0.00843,66872.0,66871.0,1.74236376]
[1722322604863,0.03189025,66872.0,66871.0,1.74236376]
[1722322605066,0.00843,66872.0,66871.0,1.75636376]
[1722322605518,0.00843,66872.0,66871.0,1.72836376]
[1722322605908,0.00843,66872.0,66871.0,1.66556376]
[1722322606111,0.00843,66872.0,66871.0,1.74236007]
[1722322606506,0.00843,66872.0,66871.0,1.75636007]
[1722322606713,0.00843,66872.0,66871.0,1.74236007]
[1722322607202,0.00843,66872.0,66871.0,1.75636007]
[1722322607404,0.00843,66872.0,66871.0,1.74236007]
[1722322607822,0.00843,66872.0,66871.0,1.72836007]
[1722322608117,0.00843,66872.0,66871.0,1.74236007]
[1722322608316,0.00843,66872.0,66871.0,1.51189407]
[1722322608520,0.03189004,66872.0,66871.0,1.51189407]
[1722322608722,0.00843,66872.0,66871.0,1.51189407]
[1722322608946,0.00843,66872.0,66871.0,1.50289407]
[1722322609369,0.00843,66872.0,66871.0,1.37863372]
[1722322609567,0.00843,66872.0,66871.0,1.50289555]
[1722322610078,0.00843,66872.0,66871.0,1.50289554]
[1722322610700,0.00843,66872.0,66871.0,1.18682954]
[1722322610922,0.00843,66872.0,66871.0,1.0178065]
[1722322611273,0.00843,66872.0,66871.0,0.9410065]
[1722322611440,0.00843,66872.0,66871.0,1.0178065]
[1722322611640,0.00843,66872.0,66871.0,0.6169405]
[1722322611842,0.00843,66872.0,66871.0,0.49267868]
[1722322612041,0.03189052,66872.0,66871.0,0.49267868]
[1722322612314,0.00843,66872.0,66871.0,0.69374992]
[1722322612493,0.00843,66872.0,66871.0,0.80874468]
[1722322613863,0.00843,66872.0,66871.0,0.93301459]
[1722322614338,0.00843,66872.0,66871.0,1.07691459]
[1722322615125,0.03189084,66872.0,66871.0,1.07691459]
[1722322615731,0.00843,66872.0,66871.0,1.07691459]
[1722322615894,0.00843,66872.0,66871.0,0.95264468]
[1722322616094,0.00843,66872.0,66871.0,1.07690937]
[1722322617031,0.00843,66872.0,66871.0,1.00010937]
[1722322617232,0.00843,66872.0,66871.0,1.01390937]
[1722322617614,0.54115584,66884.0,66871.0,1.01390937]
[1722322617615,0.05983092,66884.0,66880.0,0.239234]
[1722322617816,0.015038,66884.0,66883.0,0.577934]
[1722322618017,0.015038,66884.0,66883.0,1.1806244]
[1722322618217,0.015038,66884.0,66883.0,0.82285652]
[1722322618440,0.015038,66884.0,66883.0,0.60375652]
[1722322618642,0.015038,66884.0,66883.0,0.00569952]
[1722322618840,0.015038,66884.0,66883.0,0.119611]
[1722322619040,0.015038,66884.0,66883.0,0.358834]
[1722322619248,0.015038,66884.0,66883.0,0.36429134]
[1722322619577,0.015038,66884.0,66883.0,1.07223734]
[1722322619761,0.015038,66884.0,66883.0,1.06123734]
[1722322620073,0.015038,66884.0,66883.0,1.18548375]
[1722322620568,0.015038,66884.0,66883.0,1.06123734]
[1722322620746,0.015038,66884.0,66883.0,1.06923734]
[1722322621314,0.015038,66884.0,66883.0,1.07923734]
[1722322621515,0.015038,66884.0,66883.0,1.20348534]
[1722322621736,0.015038,66884.0,66883.0,1.06923734]
[1722322622135,0.015038,66884.0,66883.0,1.07523734]
[1722322622531,0.015038,66884.0,66883.0,1.08923734]
[1722322622730,0.015038,66884.0,66883.0,1.30046034]
[1722322622955,0.03849455,66884.0,66883.0,1.31446034]
[1722322623129,0.03849455,66884.0,66883.0,1.45270571]
[1722322623352,0.03849455,66884.0,66883.0,1.43870571]
[1722322623765,0.03849455,66884.0,66883.0,1.45270571]
[1722322623965,0.03849455,66884.0,66883.0,1.43870571]
[1722322624188,0.03849455,66884.0,66883.0,1.31446034]
[1722322624506,0.03849455,66884.0,66883.0,1.3479056]
[1722322624750,0.03849455,66884.0,66883.0,1.31446034]
[1722322624935,0.03849455,66884.0,66883.0,1.46509338]
[1722322625123,0.03849455,66884.0,66883.0,1.60531779]
[1722322625530,0.03849455,66884.0,66883.0,1.63331779]
[1722322625879,0.03849455,66884.0,66883.0,1.61931779]
[1722322626073,0.03849455,66884.0,66883.0,1.60531779]
[1722322626333,0.03849455,66884.0,66883.0,1.61931779]
[1722322626632,0.03849455,66884.0,66883.0,1.63331779]
[1722322627967,0.03849455,66884.0,66883.0,1.60531397]
[1722322628368,0.03849455,66884.0,66883.0,1.61931397]
[1722322628507,0.03849455,66884.0,66883.0,1.49507338]
[1722322628729,0.03849455,66884.0,66883.0,1.60531386]
[1722322628730,0.03932455,66884.0,66883.0,1.60531386]
[1722322629122,0.03932455,66884.0,66883.0,1.61931386]
[1722322629526,0.03932455,66884.0,66883.0,1.60531386]
[1722322629731,0.03932455,66884.0,66883.0,1.63331386]
[1722322630332,0.03932455,66884.0,66883.0,1.63331046]
[1722322630777,0.015868,66884.0,66883.0,1.63331046]
[1722322631150,0.015868,66884.0,66883.0,1.50907338]
[1722322631353,0.015868,66884.0,66883.0,1.63331012]
[1722322632998,0.015868,66884.0,66883.0,1.65631012]
[1722322634384,0.015868,66884.0,66883.0,1.58845418]
[1722322634588,0.015868,66884.0,66883.0,1.66525322]
[1722322635533,0.03932375,66884.0,66883.0,1.66525322]
[1722322635742,0.015868,66884.0,66883.0,1.66525322]
[1722322636527,0.015868,66884.0,66883.0,1.64225322]
[1722322637413,0.015868,66884.0,66883.0,1.56545322]
[1722322637616,0.015868,66884.0,66883.0,1.64225322]
[1722322638418,0.015868,66884.0,66883.0,1.6422605]
[1722322638668,0.03932425,66884.0,66883.0,1.6422605]
[1722322638872,0.03932425,66884.0,66883.0,1.5792605]
[1722322639077,0.015868,66884.0,66883.0,1.5792605]
[1722322639250,0.015868,66884.0,66883.0,1.11070446]
[1722322639943,0.015868,66884.0,66883.0,0.39229134]
[1722322640171,0.015868,66884.0,66883.0,0.15306834]
[1722322640172,0.076868,66884.0,66883.0,0.15306834]
[1722322640680,0.076868,66884.0,66883.0,0.03345734]
[1722322641119,0.076868,66884.0,66883.0,0.13906834]
[1722322641776,0.076868,66884.0,66883.0,0.60351434]
[1722322642165,0.076868,66884.0,66883.0,0.61451434]
[1722322642581,0.10032641,66884.0,66883.0,0.36429134]
[1722322643044,0.10032641,66884.0,66883.0,0.13806834]
[1722322643356,0.10032641,66884.0,66883.0,0.37729134]
[1722322644357,0.14513021,66884.0,66883.0,0.37729134]
[1722322645916,0.14513021,66884.0,66883.0,0.13806834]
[1722322646254,0.10032641,66884.0,66883.0,0.37729134]
[1722322646451,0.14514467,66884.0,66883.0,0.37729134]
[1722322646652,0.10032641,66884.0,66883.0,0.37729134]
[1722322647618,0.10032641,66884.0,66883.0,0.13806834]
[1722322649439,0.16755848,66884.0,66883.0,0.13806834]
[1722322649665,0.08415253,66884.0,66883.0,0.45409134]
[1722322649895,0.03932641,66884.0,66883.0,0.45409134]
[1722322650340,0.08415195,66884.0,66883.0,0.45409134]
[1722322650759,0.03932641,66884.0,66883.0,0.45409134]
[1722322651073,0.08415256,66884.0,66883.0,0.45409134]
[1722322651243,0.03932641,66884.0,66883.0,0.45409134]
[1722322651446,0.08415256,66884.0,66883.0,0.45409134]
[1722322651856,0.03932641,66884.0,66883.0,0.448634]
[1722322652061,0.03932641,66884.0,66883.0,0.371834]
[1722322652262,0.10656564,66884.0,66883.0,0.37774555]
[1722322652476,0.03932641,66884.0,66883.0,0.37774555]
[1722322652670,0.12897872,66884.0,66883.0,0.37774555]
[1722322652872,0.14518429,66884.0,66883.0,0.01891155]
[1722322653070,0.23484385,66884.0,66883.0,0.01891155]
[1722322653243,0.21118429,66884.0,66883.0,0.01891155]
[1722322654566,0.33079429,66884.0,66883.0,0.01891155]
[1722322654765,0.21118429,66884.0,66883.0,0.013]
[1722322654967,0.32324968,66884.0,66883.0,0.013]
[1722322655368,0.32324968,66884.0,66883.0,0.01891155]
[1722322656141,0.18204968,66884.0,66883.0,0.22082255]
[1722322656350,0.18161318,66884.0,66883.0,0.22082255]
[1722322656557,0.18161318,66884.0,66883.0,0.13852255]
[1722322656760,0.18161318,66884.0,66883.0,0.01891155]
[1722322657374,0.1816117,66884.0,66883.0,0.01891155]
[1722322657814,0.06961607,66884.0,66883.0,0.01891155]
[1722322658232,0.18167998,66884.0,66883.0,0.01891155]
[1722322658893,0.18165325,66884.0,66883.0,0.01891155]
[1722322659320,0.10508717,66884.0,66883.0,0.01891155]
[1722322659919,0.06724247,66885.0,66883.0,0.13852255]
[1722322660118,0.08975662,66888.0,66883.0,0.13852255]
[1722322660119,0.04482616,66886.0,66883.0,0.13852255]
[1722322660374,0.04482616,66885.0,66883.0,0.13852255]
[1722322660545,0.06828423,66885.0,66883.0,0.13852255]
[1722322660875,0.0448271,66884.0,66883.0,0.12552255]
[1722322661174,0.0448271,66886.0,66883.0,0.13052255]
[1722322661306,0.04467547,66886.0,66883.0,0.13652255]
[1722322662023,0.18694365,66888.0,66883.0,0.13652255]
[1722322662024,0.00083,66884.0,66883.0,0.13652255]
[1722322662461,0.00083,66884.0,66883.0,0.13052255]
[1722322662631,0.00083,66884.0,66883.0,0.12552255]
[1722322663094,0.00083,66884.0,66883.0,0.13152255]
[1722322664284,0.02428773,66884.0,66883.0,0.13152255]
[1722322664460,0.02428773,66884.0,66883.0,0.01191155]
[1722322664637,0.02428773,66884.0,66883.0,0.01891155]
[1722322664837,0.02428773,66884.0,66883.0,0.013]
[1722322664838,0.07829921,66884.0,66883.0,0.013]
[1722322665040,0.07829921,66884.0,66883.0,0.01891617]
[1722322665264,0.18534,66884.0,66883.0,0.01891617]
[1722322665493,0.49180676,66884.0,66883.0,0.01891617]
[1722322665665,0.49180676,66884.0,66883.0,0.013]
[1722322666554,0.49336096,66884.0,66883.0,0.013]
[1722322667202,0.49180619,66884.0,66883.0,0.013]
[1722322667396,0.49299447,66884.0,66883.0,0.013]
[1722322667716,0.13297288,66884.0,66883.0,0.013]
[1722322667924,0.06807288,66884.0,66883.0,0.013]
[1722322668262,0.02428838,66884.0,66883.0,0.132611]
[1722322668466,0.02428838,66884.0,66883.0,0.13852717]
[1722322668861,0.02428838,66884.0,66883.0,0.01891617]
[1722322668862,0.09153126,66884.0,66883.0,0.01891617]
[1722322669032,0.02428838,66884.0,66883.0,0.01891617]
[1722322669437,0.02428838,66884.0,66883.0,0.13852717]
[1722322669675,0.02428838,66884.0,66883.0,0.132611]
[1722322669857,0.02428838,66884.0,66883.0,0.13852776]
[1722322670124,0.14455089,66884.0,66883.0,0.13852776]
[1722322670374,0.07731524,66884.0,66883.0,0.13852776]
[1722322670613,0.16696276,66884.0,66883.0,0.13852776]
[1722322670835,0.07606626,66884.0,66883.0,0.13852776]
[1722322671269,0.16571378,66884.0,66883.0,0.13852776]
[1722322671700,0.07606626,66884.0,66883.0,0.13852776]
[1722322671939,0.14330144,66884.0,66883.0,0.13852776]
[1722322672098,0.07606626,66884.0,66883.0,0.13852776]
[1722322672838,0.16571378,66884.0,66883.0,0.13852776]
[1722322673469,0.07606626,66884.0,66883.0,0.13852776]
[1722322673820,0.14330641,66884.0,66883.0,0.13852776]
[1722322674413,0.07606626,66884.0,66883.0,0.13852776]
[1722322675146,0.07606626,66884.0,66883.0,0.37775076]
[1722322675347,0.14330902,66884.0,66883.0,0.37775076]
[1722322675596,0.07606626,66884.0,66883.0,0.37775076]
[1722322675911,0.14330902,66884.0,66883.0,0.37775076]
[1722322676893,0.1433187,66884.0,66883.0,0.37775076]
[1722322677091,0.1202793,66884.0,66883.0,0.37775076]
[1722322677472,0.12028636,66884.0,66883.0,0.37775076]
[1722322677873,0.12028636,66884.0,66883.0,0.13852776]
[1722322678272,0.14270619,66884.0,66883.0,0.13852776]
[1722322678455,0.16512602,66884.0,66883.0,0.13852776]
[1722322678659,0.05302686,66884.0,66883.0,0.13852776]
[1722322678903,0.14271966,66884.0,66883.0,0.13852776]
[1722322679075,0.14271944,66884.0,66883.0,0.13852776]
[1722322679281,0.31303686,66884.0,66883.0,0.01891676]
[1722322679514,0.30555645,66884.0,66883.0,0.01891676]
[1722322679684,0.19342686,66884.0,66883.0,0.013]
[1722322679880,0.05302686,66884.0,66883.0,0.013]
[1722322680376,0.05302686,66884.0,66883.0,0.01891255]
[1722322680574,0.05302686,66884.0,66883.0,0.013]
[1722322682747,0.05458106,66884.0,66883.0,0.01891448]
[1722322683854,0.05458106,66884.0,66883.0,0.20412548]
[1722322683855,0.05302686,66884.0,66883.0,0.20412548]
[1722322684056,0.13617855,66886.0,66885.0,0.119608]
[1722322684261,0.05626398,66886.0,66885.0,0.119608]
[1722322684502,0.05470978,66886.0,66885.0,0.12552286]
[1722322684883,0.05470978,66886.0,66885.0,0.36473886]
[1722322685517,0.05470978,66886.0,66885.0,0.36873886]
[1722322686325,0.05470978,66886.0,66885.0,0.37373886]
[1722322688389,0.05470978,66886.0,66885.0,0.13452286]
[1722322689115,0.05470978,66886.0,66885.0,0.37373886]
[1722322689534,0.05470978,66886.0,66885.0,0.01491486]
[1722322690282,0.05470978,66886.0,66885.0,0.13452286]
[1722322696418,0.05470978,66886.0,66885.0,0.01491486]
[1722322696419,0.1894474,66886.0,66885.0,0.01491486]
[1722322697333,0.3098834,66886.0,66885.0,0.01491486]
[1722322697854,0.1902774,66886.0,66885.0,0.01491486]
[1722322698180,0.19028429,66886.0,66885.0,0.01491486]
[1722322698987,0.05553978,66886.0,66885.0,0.01491486]
[1722322700137,0.05678439,66886.0,66885.0,0.01491486]
[1722322700750,0.05553978,66886.0,66885.0,0.01491486]
[1722322700917,0.05709398,66886.0,66885.0,0.01491486]
[1722322704508,0.05553978,66886.0,66885.0,0.01491486]
[1722322705598,0.05709398,66886.0,66885.0,0.01491486]
[1722322705711,0.05553978,66886.0,66885.0,0.01491486]
[1722322705914,0.05709398,66886.0,66885.0,0.01491486]
[1722322706429,0.05553978,66886.0,66885.0,0.01491486]
[1722322706850,0.05709398,66886.0,66885.0,0.01491486]
[1722322707264,0.05553978,66886.0,66885.0,0.01491486]
[1722322708463,0.05553978,66886.0,66885.0,0.13452286]
[1722322708904,0.05553978,66886.0,66885.0,0.51383886]
[1722322712772,0.19029575,66886.0,66885.0,0.51383886]
[1722322713531,0.05553978,66886.0,66885.0,0.51383886]
[1722322713730,0.19029575,66886.0,66885.0,0.51383886]
[1722322714180,0.05553978,66886.0,66885.0,0.51383886]
[1722322714586,0.19030557,66886.0,66885.0,0.51383886]
[1722322714902,0.19030318,66886.0,66885.0,0.51383886]
[1722322715058,0.05553978,66886.0,66885.0,0.51383886]
[1722322715266,0.1903044,66886.0,66885.0,0.51383886]
[1722322715511,0.05553978,66886.0,66885.0,0.51383886]
[1722322715654,0.19030694,66886.0,66885.0,0.51383886]
[1722322716495,0.05553978,66886.0,66885.0,0.51383886]
[1722322726958,0.05553978,66886.0,66885.0,0.75305486]
[1722322730191,0.05553978,66886.0,66885.0,0.51383886]
[1722322734586,0.056892,66886.0,66885.0,0.51383886]
[1722322740145,0.056892,66886.0,66885.0,0.75305486]
[1722322740371,0.056892,66886.0,66885.0,0.51383886]
[1722322744901,0.056892,66886.0,66885.0,0.90520202]
[1722322745103,0.00083,66886.0,66885.0,1.41929901]
[1722322745304,0.00083,66886.0,66885.0,1.54927901]
[1722322745865,0.00083,66886.0,66885.0,1.54427901]
[1722322746242,0.00083,66886.0,66885.0,1.55127901]
[1722322746612,0.00083,66886.0,66885.0,1.54427901]
[1722322746814,0.00083,66886.0,66885.0,1.55827901]
[1722322747012,0.00083,66886.0,66885.0,1.56738817]
[1722322747233,0.00083,66886.0,66885.0,1.56338817]
[1722322747434,0.00083,66886.0,66885.0,1.54938817]
[1722322747666,0.00083,66886.0,66885.0,1.55538094]
[1722322747869,0.00083,66886.0,66885.0,1.54938094]
[1722322748383,0.00083,66886.0,66885.0,1.48803378]
[1722322748720,0.00083,66886.0,66885.0,1.50203378]
[1722322748922,0.00083,66886.0,66885.0,1.37779306]
[1722322749123,0.00083,66886.0,66885.0,1.50203378]
[1722322751057,0.00083,66886.0,66885.0,1.50203296]
[1722322754245,0.00083,66886.0,66885.0,1.37779306]
[1722322754487,0.00083,66886.0,66885.0,1.50203374]
[1722322756783,0.00083,66886.0,66885.0,1.50203375]
[1722322757134,0.00083,66886.0,66885.0,1.50203345]
[1722322757544,0.00083,66886.0,66885.0,1.37779306]
[1722322757722,0.00083,66886.0,66885.0,1.50203337]
[1722322760724,0.00083,66886.0,66885.0,1.37779306]
[1722322760934,0.00083,66886.0,66885.0,1.5020266]
[1722322764154,0.00083,66886.0,66885.0,1.37779306]
[1722322764354,0.00083,66886.0,66885.0,1.50202495]
[1722322764939,0.00083,66886.0,66885.0,1.50202518]
[1722322766603,0.00083,66886.0,66885.0,1.50202517]
[1722322767400,0.00083,66886.0,66885.0,1.37779306]
[1722322767603,0.00083,66886.0,66885.0,1.50202517]
[1722322770854,0.00083,66886.0,66885.0,1.50202508]
[1722322771303,0.00083,66886.0,66885.0,1.74124108]
[1722322771454,0.00083,66886.0,66885.0,1.50202508]
[1722322773536,0.00083,66886.0,66885.0,1.42522508]
[1722322773880,0.00083,66886.0,66885.0,1.50202508]
[1722322774042,0.00083,66886.0,66885.0,1.50202529]
[1722322776405,0.00083,66886.0,66885.0,1.50202539]
[1722322777389,0.00083,66886.0,66885.0,1.37779306]
[1722322777655,0.00083,66886.0,66885.0,1.50202539]
[1722322780288,0.00083,66886.0,66885.0,1.42522539]
[1722322780482,0.00083,66886.0,66885.0,1.50202539]
[1722322780685,0.00083,66886.0,66885.0,1.50202815]
[1722322781451,0.00083,66886.0,66885.0,1.42522815]
[1722322781652,0.00083,66886.0,66885.0,1.50202815]
[1722322784033,0.00083,66886.0,66885.0,1.50202891]
[1722322784752,0.00083,66886.0,66885.0,1.5020289]
[1722322784959,0.00083,66886.0,66885.0,1.37779306]
[1722322785207,0.00083,66886.0,66885.0,1.5020289]
[1722322786257,0.00083,66886.0,66885.0,1.37779306]
[1722322786557,0.00083,66886.0,66885.0,1.50202875]
[1722322787310,0.00083,66886.0,66885.0,1.37779306]
[1722322787512,0.00083,66886.0,66885.0,1.50202903]
[1722322790851,0.00083,66886.0,66885.0,1.50202895]
[1722322793950,0.00083,66886.0,66885.0,1.37779306]
[1722322794118,0.00083,66886.0,66885.0,1.50202946]
[1722322794546,0.00083,66886.0,66885.0,1.37779306]
[1722322794756,0.00083,66886.0,66885.0,1.50202946]
[1722322796893,0.00083,66886.0,66885.0,1.44122946]
[1722322797940,0.00083,66886.0,66885.0,0.89528042]
[1722322798096,0.08468441,66886.0,66885.0,0.31684842]
[1722322798292,0.31480028,66886.0,66885.0,0.18350286]
[1722322798517,0.20253393,66886.0,66885.0,0.06389486]